[Event "Titled Tuesday Blitz April 19 Early 2022"]
[White "Lopez, Henry"]
[Black "Piliczewski, Bogusz"]
[WhiteFideId "5203830"]
[BlackFideId "1104144"]
[WhiteElo "2177"]
[BlackElo "1896"]
[Result "1-0"]
[Round "03"]
[TimeControl "180+1"]
[Date "2022.04.19"]
[WhiteClock "0:00:06"]
[BlackClock "0:00:02"]

1. d4 {[%clk 0:03:00]}  d5 {[%clk 0:02:58]} 2. Nf3 {[%clk 0:02:45]}  Nf6 {[%clk 0:02:57]} 3. c4 {[%clk 0:02:44]}  c6 {[%clk 0:02:56]} 4. Nc3 {[%clk 0:02:43]}  e6 {[%clk 0:02:56]} 5. Bg5 {[%clk 0:02:41]}  Nbd7 {[%clk 0:02:57]} 6. e3 {[%clk 0:02:40]}  Qa5 {[%clk 0:02:57]} 7. cxd5 {[%clk 0:02:39]}  Nxd5 {[%clk 0:02:56]} 8. Qd2 {[%clk 0:02:39]}  Bb4 {[%clk 0:02:56]} 9. Rc1 {[%clk 0:02:38]}  Nxc3 {[%clk 0:02:40]} 10. bxc3 {[%clk 0:02:32]}  Ba3 {[%clk 0:02:40]} 11. Rb1 {[%clk 0:02:32]}  O-O {[%clk 0:02:33]} 12. Bd3 {[%clk 0:02:21]}  e5 {[%clk 0:02:31]} 13. O-O {[%clk 0:02:19]}  f5 {[%clk 0:02:03]} 14. Bc4+ {[%clk 0:01:49]}  Kh8 {[%clk 0:01:51]} 15. dxe5 {[%clk 0:01:33]}  Nxe5 {[%clk 0:01:49]} 16. Nxe5 {[%clk 0:01:31]}  Qxe5 {[%clk 0:01:48]} 17. Bf4 {[%clk 0:01:31]}  Qe7 {[%clk 0:01:41]} 18. Rfd1 {[%clk 0:01:28]}  b5 {[%clk 0:01:25]} 19. Bb3 {[%clk 0:01:19]}  a5 {[%clk 0:01:25]} 20. Qd4 {[%clk 0:01:05]}  a4 {[%clk 0:01:22]} 21. Bc2 {[%clk 0:01:02]}  Be6 {[%clk 0:01:14]} 22. Ra1 {[%clk 0:00:49]}  Bb2 {[%clk 0:01:12]} 23. Rab1 {[%clk 0:00:46]}  a3 {[%clk 0:01:12]} 24. Bd6 {[%clk 0:00:43]}  Qf7 {[%clk 0:00:51]} 25. Bxf8 {[%clk 0:00:42]}  Qxf8 {[%clk 0:00:43]} 26. Bb3 {[%clk 0:00:40]}  Bxb3 {[%clk 0:00:31]} 27. axb3 {[%clk 0:00:39]}  a2 {[%clk 0:00:32]} 28. Rxb2 {[%clk 0:00:34]}  a1=Q {[%clk 0:00:31]} 29. Rbb1 {[%clk 0:00:34]}  Qa7 {[%clk 0:00:24]} 30. Qf4 {[%clk 0:00:32]}  Qaf7 {[%clk 0:00:19]} 31. c4 {[%clk 0:00:30]}  Rd8 {[%clk 0:00:18]} 32. h4 {[%clk 0:00:26]}  h6 {[%clk 0:00:18]} 33. g3 {[%clk 0:00:25]}  Q8e7 {[%clk 0:00:15]} 34. cxb5 {[%clk 0:00:22]}  cxb5 {[%clk 0:00:14]} 35. Rbc1 {[%clk 0:00:22]}  Kh7 {[%clk 0:00:13]} 36. Rd4 {[%clk 0:00:16]}  Qff6 {[%clk 0:00:12]} 37. Rcd1 {[%clk 0:00:15]}  Rxd4 {[%clk 0:00:11]} 38. Rxd4 {[%clk 0:00:14]}  Qee5 {[%clk 0:00:10]} 39. Qf3 {[%clk 0:00:15]}  Qfe6 {[%clk 0:00:09]} 40. b4 {[%clk 0:00:12]}  Q5f6 {[%clk 0:00:06]} 41. h5 {[%clk 0:00:11]}  Qfe5 {[%clk 0:00:05]} 42. Kg2 {[%clk 0:00:10]}  Q6f6 {[%clk 0:00:04]} 43. Rf4 {[%clk 0:00:09]}  Qe8 {[%clk 0:00:04]} 44. g4 {[%clk 0:00:07]}  Qg5 {[%clk 0:00:02]} 45. Rxf5 {[%clk 0:00:06]} 1-0


[Site "https://www.chess.com"]

[Event "Titled Tuesday Blitz April 19 Early 2022"]
[White "Lysyj, Igor"]
[Black "Kornyukov, Alexey"]
[WhiteFideId "4150120"]
[BlackFideId "4150457"]
[WhiteElo "2611"]
[BlackElo "2303"]
[Result "1-0"]
[Round "03"]
[TimeControl "180+1"]
[Date "2022.04.19"]
[WhiteClock "0:00:39"]
[BlackClock "0:00:01"]

1. d4 {[%clk 0:02:59]}  d5 {[%clk 0:02:58]} 2. c4 {[%clk 0:02:59]}  e6 {[%clk 0:02:58]} 3. Nf3 {[%clk 0:02:57]}  c6 {[%clk 0:02:58]} 4. g3 {[%clk 0:02:55]}  Nf6 {[%clk 0:02:55]} 5. Bg2 {[%clk 0:02:54]}  Be7 {[%clk 0:02:50]} 6. O-O {[%clk 0:02:52]}  O-O {[%clk 0:02:49]} 7. Qc2 {[%clk 0:02:44]}  Nbd7 {[%clk 0:02:30]} 8. Bf4 {[%clk 0:02:40]}  b6 {[%clk 0:02:26]} 9. cxd5 {[%clk 0:02:39]}  cxd5 {[%clk 0:02:20]} 10. Rc1 {[%clk 0:02:39]}  Bb7 {[%clk 0:02:13]} 11. Qb3 {[%clk 0:02:38]}  Rc8 {[%clk 0:02:03]} 12. Rxc8 {[%clk 0:02:36]}  Qxc8 {[%clk 0:02:02]} 13. Nc3 {[%clk 0:02:36]}  a6 {[%clk 0:01:53]} 14. Rc1 {[%clk 0:02:34]}  Qa8 {[%clk 0:01:51]} 15. Na4 {[%clk 0:02:34]}  b5 {[%clk 0:01:45]} 16. Nc5 {[%clk 0:02:34]}  Rc8 {[%clk 0:01:36]} 17. Nxb7 {[%clk 0:02:32]}  Qxb7 {[%clk 0:01:34]} 18. Ne1 {[%clk 0:02:26]}  Rxc1 {[%clk 0:01:20]} 19. Bxc1 {[%clk 0:02:25]}  Qc6 {[%clk 0:01:14]} 20. Qd1 {[%clk 0:02:21]}  Nb6 {[%clk 0:01:13]} 21. Nd3 {[%clk 0:02:21]}  Bd6 {[%clk 0:01:04]} 22. b3 {[%clk 0:02:20]}  Qc7 {[%clk 0:01:00]} 23. Bb2 {[%clk 0:02:17]}  Nbd7 {[%clk 0:00:55]} 24. e3 {[%clk 0:02:09]}  h6 {[%clk 0:00:54]} 25. Qc1 {[%clk 0:02:05]}  Qxc1+ {[%clk 0:00:53]} 26. Bxc1 {[%clk 0:02:05]}  Kf8 {[%clk 0:00:52]} 27. Bd2 {[%clk 0:02:03]}  Ke7 {[%clk 0:00:49]} 28. Nb4 {[%clk 0:02:02]}  Nb8 {[%clk 0:00:46]} 29. Nc2 {[%clk 0:01:52]}  Kd7 {[%clk 0:00:43]} 30. Bf1 {[%clk 0:01:51]}  Kc6 {[%clk 0:00:33]} 31. a4 {[%clk 0:01:51]}  Kb6 {[%clk 0:00:30]} 32. f3 {[%clk 0:01:46]}  Nc6 {[%clk 0:00:28]} 33. axb5 {[%clk 0:01:33]}  axb5 {[%clk 0:00:28]} 34. Bd3 {[%clk 0:01:29]}  Na5 {[%clk 0:00:26]} 35. Na1 {[%clk 0:01:26]}  Ba3 {[%clk 0:00:22]} 36. Bxa5+ {[%clk 0:01:20]}  Kxa5 {[%clk 0:00:21]} 37. Nc2 {[%clk 0:01:20]}  Bb2 {[%clk 0:00:19]} 38. Kf2 {[%clk 0:01:20]}  e5 {[%clk 0:00:19]} 39. dxe5 {[%clk 0:01:19]}  Bxe5 {[%clk 0:00:19]} 40. f4 {[%clk 0:01:15]}  Bc3 {[%clk 0:00:19]} 41. Kf3 {[%clk 0:01:14]}  h5 {[%clk 0:00:16]} 42. Bf5 {[%clk 0:01:12]}  Kb6 {[%clk 0:00:15]} 43. h3 {[%clk 0:01:11]}  Kc5 {[%clk 0:00:15]} 44. g4 {[%clk 0:01:10]}  hxg4+ {[%clk 0:00:14]} 45. hxg4 {[%clk 0:01:10]}  Ne8 {[%clk 0:00:14]} 46. Ke2 {[%clk 0:01:05]}  Nd6 {[%clk 0:00:14]} 47. Bd7 {[%clk 0:01:05]}  Bb2 {[%clk 0:00:11]} 48. g5 {[%clk 0:01:03]}  f6 {[%clk 0:00:10]} 49. g6 {[%clk 0:01:02]}  Ne4 {[%clk 0:00:10]} 50. Ne1 {[%clk 0:01:00]}  Nc3+ {[%clk 0:00:07]} 51. Kd3 {[%clk 0:00:57]}  Ne4 {[%clk 0:00:07]} 52. Nf3 {[%clk 0:00:54]}  b4 {[%clk 0:00:06]} 53. Nh4 {[%clk 0:00:54]}  Nd6 {[%clk 0:00:05]} 54. Be6 {[%clk 0:00:53]}  Bc3 {[%clk 0:00:04]} 55. Nf3 {[%clk 0:00:48]}  Bb2 {[%clk 0:00:02]} 56. Bf7 {[%clk 0:00:46]}  Nf5 {[%clk 0:00:02]} 57. Be6 {[%clk 0:00:44]}  Ng3 {[%clk 0:00:01]} 58. Nh4 {[%clk 0:00:39]}  Kd6 {[%clk 0:00:01]} 59. Bf7 {[%clk 0:00:39]} 1-0


[Site "https://www.chess.com"]

[Event "Titled Tuesday Blitz April 19 Early 2022"]
[White "Maksimenko, Viktor"]
[Black "Vovk, Orest"]
[WhiteFideId "13710478"]
[BlackFideId "14113490"]
[WhiteElo "2269"]
[BlackElo "2203"]
[Result "1-0"]
[Round "03"]
[TimeControl "180+1"]
[Date "2022.04.19"]
[WhiteClock "0:00:36"]
[BlackClock "0:00:30"]

1. d4 {[%clk 0:03:00]}  e5 {[%clk 0:02:53]} 2. dxe5 {[%clk 0:03:00]}  Nc6 {[%clk 0:02:51]} 3. Nf3 {[%clk 0:03:00]}  Qe7 {[%clk 0:02:51]} 4. Nc3 {[%clk 0:03:00]}  Nxe5 {[%clk 0:02:51]} 5. Nd5 {[%clk 0:03:00]}  Nxf3+ {[%clk 0:02:51]} 6. gxf3 {[%clk 0:03:01]}  Qd8 {[%clk 0:02:51]} 7. e4 {[%clk 0:03:01]}  d6 {[%clk 0:02:42]} 8. Be3 {[%clk 0:02:57]}  Be6 {[%clk 0:02:42]} 9. Qd2 {[%clk 0:02:53]}  c6 {[%clk 0:02:42]} 10. Nc3 {[%clk 0:02:52]}  Qa5 {[%clk 0:02:42]} 11. Rg1 {[%clk 0:02:47]}  h6 {[%clk 0:02:42]} 12. f4 {[%clk 0:02:46]}  g6 {[%clk 0:02:41]} 13. Bd4 {[%clk 0:02:38]}  Rh7 {[%clk 0:02:39]} 14. f5 {[%clk 0:02:37]}  Bd7 {[%clk 0:02:24]} 15. Bc4 {[%clk 0:02:24]}  Ne7 {[%clk 0:02:05]} 16. O-O-O {[%clk 0:02:17]}  O-O-O {[%clk 0:01:57]} 17. f6 {[%clk 0:02:14]}  Ng8 {[%clk 0:01:53]} 18. f4 {[%clk 0:02:10]}  c5 {[%clk 0:01:39]} 19. Bf2 {[%clk 0:02:01]}  Nxf6 {[%clk 0:01:38]} 20. Bh4 {[%clk 0:02:01]}  Be7 {[%clk 0:01:33]} 21. e5 {[%clk 0:02:00]}  dxe5 {[%clk 0:01:28]} 22. fxe5 {[%clk 0:02:00]}  Ne4 {[%clk 0:01:23]} 23. Nxe4 {[%clk 0:01:42]}  Qxd2+ {[%clk 0:01:23]} 24. Rxd2 {[%clk 0:01:43]}  Bxh4 {[%clk 0:01:23]} 25. Nd6+ {[%clk 0:01:43]}  Kc7 {[%clk 0:01:22]} 26. Nxf7 {[%clk 0:01:43]}  Re8 {[%clk 0:01:16]} 27. Rxg6 {[%clk 0:01:27]}  Bf5 {[%clk 0:00:59]} 28. Rg1 {[%clk 0:00:50]}  Re7 {[%clk 0:00:37]} 29. Nd6 {[%clk 0:00:39]}  Rxe5 {[%clk 0:00:36]} 30. Nxf5 {[%clk 0:00:40]}  Rxf5 {[%clk 0:00:36]} 31. Bd3 {[%clk 0:00:40]}  Rg5 {[%clk 0:00:30]} 32. Rxg5 {[%clk 0:00:36]}  Bxg5 {[%clk 0:00:30]} 33. Bxh7 {[%clk 0:00:36]} 1-0


[Site "https://www.chess.com"]

[Event "Titled Tuesday Blitz April 19 Early 2022"]
[White "Mangialardo, Tiago Carvalho"]
[Black "Chandratreya, Prachiti"]
[WhiteFideId "2130718"]
[BlackFideId "46611215"]
[WhiteElo "2036"]
[BlackElo "1737"]
[Result "0-1"]
[Round "03"]
[TimeControl "180+1"]
[Date "2022.04.19"]
[WhiteClock "0:00:14"]
[BlackClock "0:01:26"]

1. e4 {[%clk 0:03:00]}  e6 {[%clk 0:03:00]} 2. d4 {[%clk 0:03:00]}  d5 {[%clk 0:03:00]} 3. exd5 {[%clk 0:03:01]}  exd5 {[%clk 0:03:00]} 4. c4 {[%clk 0:03:01]}  Nf6 {[%clk 0:02:58]} 5. Nc3 {[%clk 0:03:02]}  Bb4 {[%clk 0:02:57]} 6. Nf3 {[%clk 0:03:02]}  O-O {[%clk 0:02:57]} 7. Be2 {[%clk 0:03:03]}  c6 {[%clk 0:02:57]} 8. O-O {[%clk 0:03:02]}  dxc4 {[%clk 0:02:56]} 9. Bxc4 {[%clk 0:03:02]}  Nbd7 {[%clk 0:02:55]} 10. Bg5 {[%clk 0:03:01]}  h6 {[%clk 0:02:52]} 11. Bh4 {[%clk 0:03:00]}  Nb6 {[%clk 0:02:51]} 12. Bd3 {[%clk 0:03:00]}  Re8 {[%clk 0:02:48]} 13. Ne4 {[%clk 0:02:58]}  Be7 {[%clk 0:02:47]} 14. Nxf6+ {[%clk 0:02:16]}  Bxf6 {[%clk 0:02:48]} 15. Bxf6 {[%clk 0:02:16]}  Qxf6 {[%clk 0:02:47]} 16. Re1 {[%clk 0:02:16]}  Bg4 {[%clk 0:02:47]} 17. Be2 {[%clk 0:02:07]}  Rad8 {[%clk 0:02:39]} 18. Qb3 {[%clk 0:01:57]}  Bxf3 {[%clk 0:02:34]} 19. Bxf3 {[%clk 0:01:57]}  Qxd4 {[%clk 0:02:33]} 20. Rad1 {[%clk 0:01:51]}  Qc4 {[%clk 0:02:26]} 21. Rxe8+ {[%clk 0:01:39]}  Rxe8 {[%clk 0:02:25]} 22. Qa3 {[%clk 0:01:39]}  a6 {[%clk 0:02:19]} 23. g3 {[%clk 0:01:31]}  Na8 {[%clk 0:02:03]} 24. Qd6 {[%clk 0:01:20]}  Qb5 {[%clk 0:01:52]} 25. Qd7 {[%clk 0:01:15]}  Rf8 {[%clk 0:01:50]} 26. b3 {[%clk 0:01:09]}  Qb6 {[%clk 0:01:50]} 27. Qe7 {[%clk 0:01:01]}  Nc7 {[%clk 0:01:46]} 28. Rd7 {[%clk 0:01:00]}  Ne6 {[%clk 0:01:45]} 29. Rxb7 {[%clk 0:00:55]}  Qd4 {[%clk 0:01:43]} 30. Bh5 {[%clk 0:00:20]}  Ng5 {[%clk 0:01:31]} 31. h4 {[%clk 0:00:17]}  Nh3+ {[%clk 0:01:27]} 32. Kg2 {[%clk 0:00:13]}  Qxf2+ {[%clk 0:01:26]} 33. Kxh3 {[%clk 0:00:13]}  Qf1+ {[%clk 0:01:27]} 34. Kg4 {[%clk 0:00:14]}  f5# {[%clk 0:01:26]} 0-1


[Site "https://www.chess.com"]

[Event "Titled Tuesday Blitz April 19 Early 2022"]
[White "Manukian, Artak"]
[Black "Antonio, Jorge Carlos"]
[WhiteFideId "13301373"]
[BlackFideId "113190"]
[WhiteElo "2341"]
[BlackElo "2247"]
[Result "1/2-1/2"]
[Round "03"]
[TimeControl "180+1"]
[Date "2022.04.19"]
[WhiteClock "0:00:22"]
[BlackClock "0:00:39"]

1. e4 {[%clk 0:03:00]}  e5 {[%clk 0:02:59]} 2. Nf3 {[%clk 0:03:01]}  Nc6 {[%clk 0:02:58]} 3. d4 {[%clk 0:03:01]}  exd4 {[%clk 0:02:57]} 4. Nxd4 {[%clk 0:03:02]}  Nf6 {[%clk 0:02:52]} 5. Nxc6 {[%clk 0:03:02]}  bxc6 {[%clk 0:02:48]} 6. e5 {[%clk 0:03:01]}  Nd5 {[%clk 0:02:46]} 7. Bd3 {[%clk 0:02:58]}  d6 {[%clk 0:02:43]} 8. exd6 {[%clk 0:02:56]}  Bxd6 {[%clk 0:02:41]} 9. O-O {[%clk 0:02:55]}  O-O {[%clk 0:02:37]} 10. Qh5 {[%clk 0:02:51]}  g6 {[%clk 0:02:33]} 11. Qh6 {[%clk 0:02:48]}  Be5 {[%clk 0:02:28]} 12. Bg5 {[%clk 0:02:47]}  Qd7 {[%clk 0:02:24]} 13. Nd2 {[%clk 0:02:34]}  Bg7 {[%clk 0:02:24]} 14. Qh4 {[%clk 0:02:33]}  Bxb2 {[%clk 0:02:16]} 15. Rab1 {[%clk 0:02:31]}  Bg7 {[%clk 0:02:03]} 16. Ne4 {[%clk 0:02:25]}  Qg4 {[%clk 0:01:59]} 17. Qxg4 {[%clk 0:02:17]}  Bxg4 {[%clk 0:01:57]} 18. c4 {[%clk 0:02:15]}  Nb6 {[%clk 0:01:41]} 19. Nf6+ {[%clk 0:02:15]}  Bxf6 {[%clk 0:01:37]} 20. Bxf6 {[%clk 0:02:15]}  Rae8 {[%clk 0:01:33]} 21. Rfe1 {[%clk 0:01:54]}  Rxe1+ {[%clk 0:01:28]} 22. Rxe1 {[%clk 0:01:51]}  Be6 {[%clk 0:01:27]} 23. c5 {[%clk 0:01:47]}  Nd5 {[%clk 0:01:27]} 24. Be5 {[%clk 0:01:46]}  f6 {[%clk 0:01:16]} 25. Bg3 {[%clk 0:01:42]}  Kf7 {[%clk 0:01:13]} 26. Be4 {[%clk 0:01:33]}  Rb8 {[%clk 0:01:04]} 27. Bxd5 {[%clk 0:01:05]}  Bxd5 {[%clk 0:01:02]} 28. Bxc7 {[%clk 0:01:05]}  Rb2 {[%clk 0:01:01]} 29. a4 {[%clk 0:01:02]}  Rc2 {[%clk 0:00:50]} 30. Bd6 {[%clk 0:00:54]}  Be6 {[%clk 0:00:48]} 31. Ra1 {[%clk 0:00:44]}  Rc4 {[%clk 0:00:46]} 32. a5 {[%clk 0:00:40]}  a6 {[%clk 0:00:45]} 33. h3 {[%clk 0:00:38]}  Rb4 {[%clk 0:00:44]} 34. Kh2 {[%clk 0:00:28]}  Rb2 {[%clk 0:00:43]} 35. Kg3 {[%clk 0:00:27]}  Rb3+ {[%clk 0:00:43]} 36. f3 {[%clk 0:00:27]}  h5 {[%clk 0:00:41]} 37. h4 {[%clk 0:00:26]}  Rb5 {[%clk 0:00:40]} 38. Ra4 {[%clk 0:00:26]}  Bd5 {[%clk 0:00:39]} 39. Ra3 {[%clk 0:00:24]}  Be6 {[%clk 0:00:39]} 40. Ra4 {[%clk 0:00:22]}  Bd5 {[%clk 0:00:39]} 41. Ra3 {[%clk 0:00:23]}  Be6 {[%clk 0:00:39]} 42. Ra4 {[%clk 0:00:22]} 1/2-1/2


[Site "https://www.chess.com"]

[Event "Titled Tuesday Blitz April 19 Early 2022"]
[White "Marin Masis, Jose Esteban"]
[Black "Atanejhad, Sahebali"]
[WhiteFideId "6508146"]
[BlackFideId "12506664"]
[WhiteElo "1710"]
[BlackElo "1953"]
[Result "0-1"]
[Round "03"]
[TimeControl "180+1"]
[Date "2022.04.19"]
[WhiteClock "0:00:10"]
[BlackClock "0:02:12"]

1. e4 {[%clk 0:01:56]}  c6 {[%clk 0:03:00]} 2. d4 {[%clk 0:01:54]}  g6 {[%clk 0:03:01]} 3. Nf3 {[%clk 0:01:53]}  Bg7 {[%clk 0:03:00]} 4. Nc3 {[%clk 0:01:53]}  d5 {[%clk 0:03:00]} 5. e5 {[%clk 0:01:51]}  Bg4 {[%clk 0:02:59]} 6. h3 {[%clk 0:01:50]}  Bxf3 {[%clk 0:02:59]} 7. gxf3 {[%clk 0:01:51]}  e6 {[%clk 0:02:56]} 8. Be3 {[%clk 0:01:49]}  Nd7 {[%clk 0:02:55]} 9. Qd2 {[%clk 0:01:49]}  Bf8 {[%clk 0:02:54]} 10. Bd3 {[%clk 0:01:46]}  a6 {[%clk 0:02:54]} 11. O-O-O {[%clk 0:01:45]}  c5 {[%clk 0:02:54]} 12. h4 {[%clk 0:01:43]}  h5 {[%clk 0:02:53]} 13. Rdg1 {[%clk 0:01:41]}  cxd4 {[%clk 0:02:52]} 14. Bxd4 {[%clk 0:01:41]}  Bh6 {[%clk 0:02:51]} 15. f4 {[%clk 0:01:38]}  Ne7 {[%clk 0:02:49]} 16. Ne2 {[%clk 0:01:18]}  Rc8 {[%clk 0:02:47]} 17. Kb1 {[%clk 0:01:17]}  Nc6 {[%clk 0:02:46]} 18. Bc3 {[%clk 0:01:13]}  Qb6 {[%clk 0:02:43]} 19. Bxg6 {[%clk 0:00:55]}  fxg6 {[%clk 0:02:41]} 20. Rxg6 {[%clk 0:00:54]}  Ne7 {[%clk 0:02:35]} 21. Rg2 {[%clk 0:00:23]}  Nf5 {[%clk 0:02:30]} 22. Rhg1 {[%clk 0:00:20]}  Rc4 {[%clk 0:02:28]} 23. Rg8+ {[%clk 0:00:19]}  Rxg8 {[%clk 0:02:28]} 24. Rxg8+ {[%clk 0:00:20]}  Kf7 {[%clk 0:02:28]} 25. Rg2 {[%clk 0:00:19]}  d4 {[%clk 0:02:27]} 26. Ba5 {[%clk 0:00:16]}  Qc6 {[%clk 0:02:22]} 27. b3 {[%clk 0:00:16]}  Qxg2 {[%clk 0:02:18]} 28. bxc4 {[%clk 0:00:16]}  Qxf2 {[%clk 0:02:18]} 29. Qd3 {[%clk 0:00:14]}  Qe3 {[%clk 0:02:16]} 30. Qd1 {[%clk 0:00:13]}  Bxf4 {[%clk 0:02:13]} 31. Nc1 {[%clk 0:00:08]}  Qxc1+ {[%clk 0:02:12]} 32. Qxc1 {[%clk 0:00:09]}  Bxc1 {[%clk 0:02:12]} 33. Kxc1 {[%clk 0:00:10]} 0-1


[Site "https://www.chess.com"]

[Event "Titled Tuesday Blitz April 19 Early 2022"]
[White "Markelova, Lubov"]
[Black "Melikhov, Evgeny V."]
[WhiteFideId "24131369"]
[BlackFideId "4122046"]
[WhiteElo "1857"]
[BlackElo "1931"]
[Result "0-1"]
[Round "03"]
[TimeControl "180+1"]
[Date "2022.04.19"]
[WhiteClock "0:01:32"]
[BlackClock "0:01:49"]

1. e4 {[%clk 0:03:00]}  c5 {[%clk 0:02:53]} 2. Nf3 {[%clk 0:02:58]}  d6 {[%clk 0:02:50]} 3. d4 {[%clk 0:02:58]}  cxd4 {[%clk 0:02:51]} 4. Nxd4 {[%clk 0:02:59]}  Nf6 {[%clk 0:02:51]} 5. Nc3 {[%clk 0:02:59]}  a6 {[%clk 0:02:51]} 6. f3 {[%clk 0:02:55]}  e5 {[%clk 0:02:48]} 7. Nb3 {[%clk 0:02:54]}  Be6 {[%clk 0:02:48]} 8. Be3 {[%clk 0:02:54]}  Be7 {[%clk 0:02:48]} 9. Qd2 {[%clk 0:02:55]}  O-O {[%clk 0:02:48]} 10. O-O-O {[%clk 0:02:55]}  Nbd7 {[%clk 0:02:47]} 11. g4 {[%clk 0:02:51]}  b5 {[%clk 0:02:46]} 12. g5 {[%clk 0:02:45]}  Nh5 {[%clk 0:02:46]} 13. Nd5 {[%clk 0:02:43]}  Bxd5 {[%clk 0:02:38]} 14. exd5 {[%clk 0:02:41]}  Qc7 {[%clk 0:02:25]} 15. Na5 {[%clk 0:02:36]}  Rfc8 {[%clk 0:02:14]} 16. Nc6 {[%clk 0:02:33]}  Bf8 {[%clk 0:02:07]} 17. Bh3 {[%clk 0:02:22]}  Nb6 {[%clk 0:02:04]} 18. Bxc8 {[%clk 0:02:19]}  Rxc8 {[%clk 0:02:04]} 19. Bxb6 {[%clk 0:02:10]}  Qxb6 {[%clk 0:02:04]} 20. Qa5 {[%clk 0:02:06]}  Rxc6 {[%clk 0:02:01]} 21. Qd2 {[%clk 0:01:53]}  Rc4 {[%clk 0:01:57]} 22. h4 {[%clk 0:01:40]}  g6 {[%clk 0:01:51]} 23. Qe2 {[%clk 0:01:32]}  Ng3 {[%clk 0:01:49]} 0-1


[Site "https://www.chess.com"]

[Event "Titled Tuesday Blitz April 19 Early 2022"]
[White "Matlakov, Maxim"]
[Black "De Silva, L M S T"]
[WhiteFideId "4168003"]
[BlackFideId "9953698"]
[WhiteElo "2669"]
[BlackElo "1631"]
[Result "1-0"]
[Round "03"]
[TimeControl "180+1"]
[Date "2022.04.19"]
[WhiteClock "0:00:32"]
[BlackClock "0:00:40"]

1. d4 {[%clk 0:03:00]}  Nf6 {[%clk 0:03:00]} 2. Nf3 {[%clk 0:03:01]}  e6 {[%clk 0:03:00]} 3. c4 {[%clk 0:03:00]}  b6 {[%clk 0:03:00]} 4. a3 {[%clk 0:03:00]}  Bb7 {[%clk 0:03:01]} 5. Nc3 {[%clk 0:03:00]}  g6 {[%clk 0:03:01]} 6. Qc2 {[%clk 0:02:58]}  d5 {[%clk 0:03:00]} 7. Bg5 {[%clk 0:02:54]}  Bg7 {[%clk 0:03:00]} 8. e3 {[%clk 0:02:54]}  O-O {[%clk 0:03:00]} 9. cxd5 {[%clk 0:02:54]}  exd5 {[%clk 0:03:00]} 10. Be2 {[%clk 0:02:53]}  c6 {[%clk 0:03:01]} 11. O-O {[%clk 0:02:52]}  Nbd7 {[%clk 0:03:01]} 12. b4 {[%clk 0:02:52]}  Rc8 {[%clk 0:03:00]} 13. Qb3 {[%clk 0:02:52]}  Re8 {[%clk 0:02:59]} 14. Rfd1 {[%clk 0:02:50]}  a6 {[%clk 0:02:58]} 15. a4 {[%clk 0:02:45]}  b5 {[%clk 0:02:58]} 16. axb5 {[%clk 0:02:42]}  axb5 {[%clk 0:02:59]} 17. Ne1 {[%clk 0:02:39]}  Qb6 {[%clk 0:02:56]} 18. Nd3 {[%clk 0:02:37]}  Ra8 {[%clk 0:02:53]} 19. h3 {[%clk 0:02:31]}  Nf8 {[%clk 0:02:44]} 20. Bf4 {[%clk 0:02:30]}  N6d7 {[%clk 0:02:42]} 21. Nc5 {[%clk 0:02:15]}  Nxc5 {[%clk 0:02:25]} 22. bxc5 {[%clk 0:02:16]}  Qd8 {[%clk 0:02:23]} 23. Bd6 {[%clk 0:02:06]}  Ne6 {[%clk 0:02:22]} 24. Bd3 {[%clk 0:01:59]}  Bf8 {[%clk 0:02:20]} 25. Bg3 {[%clk 0:01:54]}  Qd7 {[%clk 0:02:02]} 26. h4 {[%clk 0:01:40]}  Ng7 {[%clk 0:02:01]} 27. Qc2 {[%clk 0:01:20]}  Nh5 {[%clk 0:01:59]} 28. Bh2 {[%clk 0:01:10]}  Be7 {[%clk 0:01:57]} 29. Be2 {[%clk 0:01:06]}  Ng7 {[%clk 0:01:53]} 30. h5 {[%clk 0:01:06]}  Qf5 {[%clk 0:01:20]} 31. e4 {[%clk 0:00:59]}  dxe4 {[%clk 0:01:17]} 32. g4 {[%clk 0:00:51]}  Qd7 {[%clk 0:01:10]} 33. Rxa8 {[%clk 0:00:51]}  Bxa8 {[%clk 0:01:09]} 34. Nxe4 {[%clk 0:00:51]}  f5 {[%clk 0:01:06]} 35. Nd6 {[%clk 0:00:44]}  Bxd6 {[%clk 0:01:06]} 36. Bxd6 {[%clk 0:00:39]}  fxg4 {[%clk 0:00:50]} 37. hxg6 {[%clk 0:00:39]}  Qf5 {[%clk 0:00:46]} 38. Bd3 {[%clk 0:00:37]}  Qh5 {[%clk 0:00:44]} 39. gxh7+ {[%clk 0:00:36]}  Kh8 {[%clk 0:00:45]} 40. Bg6 {[%clk 0:00:37]}  Qd5 {[%clk 0:00:39]} 41. Bxe8 {[%clk 0:00:35]}  Nf5 {[%clk 0:00:40]} 42. Be5+ {[%clk 0:00:33]}  Kxh7 {[%clk 0:00:40]} 43. Qxf5+ {[%clk 0:00:32]} 1-0


[Site "https://www.chess.com"]

[Event "Titled Tuesday Blitz April 19 Early 2022"]
[White "Melaugh, Shane"]
[Black "Koelle, Tobias"]
[WhiteFideId "2509580"]
[BlackFideId "16207378"]
[WhiteElo "1972"]
[BlackElo "2541"]
[Result "0-1"]
[Round "03"]
[TimeControl "180+1"]
[Date "2022.04.19"]
[WhiteClock "0:00:02"]
[BlackClock "0:00:44"]

1. e4 {[%clk 0:03:00]}  c5 {[%clk 0:02:58]} 2. c4 {[%clk 0:03:00]}  g6 {[%clk 0:02:57]} 3. Nc3 {[%clk 0:03:01]}  Bg7 {[%clk 0:02:57]} 4. g3 {[%clk 0:03:02]}  Nc6 {[%clk 0:02:58]} 5. Bg2 {[%clk 0:03:03]}  d6 {[%clk 0:02:59]} 6. Nge2 {[%clk 0:03:03]}  Nf6 {[%clk 0:02:59]} 7. O-O {[%clk 0:03:03]}  O-O {[%clk 0:03:00]} 8. d3 {[%clk 0:03:03]}  Nd7 {[%clk 0:03:00]} 9. a3 {[%clk 0:03:01]}  Re8 {[%clk 0:03:00]} 10. Rb1 {[%clk 0:03:02]}  Nf8 {[%clk 0:03:00]} 11. b4 {[%clk 0:03:01]}  Ne6 {[%clk 0:02:57]} 12. f4 {[%clk 0:02:52]}  Ned4 {[%clk 0:02:55]} 13. b5 {[%clk 0:02:51]}  Nxe2+ {[%clk 0:02:55]} 14. Nxe2 {[%clk 0:02:52]}  Nd4 {[%clk 0:02:55]} 15. Bb2 {[%clk 0:02:51]}  e5 {[%clk 0:02:53]} 16. Nxd4 {[%clk 0:02:43]}  cxd4 {[%clk 0:02:52]} 17. f5 {[%clk 0:02:43]}  Qg5 {[%clk 0:02:51]} 18. Bc1 {[%clk 0:02:41]}  Qe7 {[%clk 0:02:50]} 19. Qf3 {[%clk 0:02:29]}  f6 {[%clk 0:02:43]} 20. h4 {[%clk 0:02:24]}  Qf7 {[%clk 0:02:40]} 21. g4 {[%clk 0:02:23]}  Rf8 {[%clk 0:02:38]} 22. a4 {[%clk 0:02:12]}  Bd7 {[%clk 0:02:38]} 23. Ba3 {[%clk 0:02:08]}  Qe7 {[%clk 0:02:37]} 24. Rbc1 {[%clk 0:01:34]}  Bh6 {[%clk 0:02:36]} 25. c5 {[%clk 0:01:01]}  Bxc1 {[%clk 0:02:31]} 26. cxd6 {[%clk 0:01:01]}  Be3+ {[%clk 0:02:07]} 27. Qxe3 {[%clk 0:00:58]}  dxe3 {[%clk 0:02:01]} 28. dxe7 {[%clk 0:00:58]}  Rfc8 {[%clk 0:02:01]} 29. fxg6 {[%clk 0:00:56]}  hxg6 {[%clk 0:02:02]} 30. Rxf6 {[%clk 0:00:55]}  Kg7 {[%clk 0:01:53]} 31. g5 {[%clk 0:00:34]}  Rc3 {[%clk 0:01:48]} 32. Bd6 {[%clk 0:00:33]}  Rc1+ {[%clk 0:01:46]} 33. Kh2 {[%clk 0:00:14]}  e2 {[%clk 0:01:36]} 34. Bxe5 {[%clk 0:00:11]}  Kg8 {[%clk 0:01:10]} 35. Rxg6+ {[%clk 0:00:02]}  Kf7 {[%clk 0:01:10]} 36. Rf6+ {[%clk 0:00:02]}  Ke8 {[%clk 0:00:47]} 37. Bd6 {[%clk 0:00:02]}  Be6 {[%clk 0:00:47]} 38. Rf8+ {[%clk 0:00:01]}  Kd7 {[%clk 0:00:48]} 39. Rxa8 {[%clk 0:00:02]}  Bf7 {[%clk 0:00:48]} 40. e8=Q+ {[%clk 0:00:02]}  Bxe8 {[%clk 0:00:48]} 41. Bg3 {[%clk 0:00:03]}  Rc3 {[%clk 0:00:45]} 42. Bf3 {[%clk 0:00:02]}  Rxd3 {[%clk 0:00:42]} 43. Bg4+ {[%clk 0:00:03]}  Ke7 {[%clk 0:00:42]} 44. Bxe2 {[%clk 0:00:03]}  Rd2 {[%clk 0:00:42]} 45. Kh3 {[%clk 0:00:03]}  Rxe2 {[%clk 0:00:43]} 46. Rxa7 {[%clk 0:00:02]}  Bd7# {[%clk 0:00:44]} 0-1


[Site "https://www.chess.com"]